[Event "Titled Tuesday Blitz July 11 Late 2023"]
[White "Pranav, V"]
[Black "Bolourchifard, Farzad"]
[WhiteFideId "25060783"]
[BlackFideId "12510084"]
[WhiteElo "2958"]
[BlackElo "2674"]
[Result "0-1"]
[Round "7"]
[TimeControl "180+2"]
[Date "2023.07.11"]
[WhiteClock "0:00:12"]
[BlackClock "0:00:20"]
[Board "20"]

1. e4 {[%clk 0:03:00]}  e5 {[%clk 0:02:57]} 2. Nf3 {[%clk 0:03:01]}  Nc6 {[%clk 0:02:57]} 3. Bb5 {[%clk 0:03:01]}  a6 {[%clk 0:02:57]} 4. Ba4 {[%clk 0:03:01]}  Nf6 {[%clk 0:02:58]} 5. O-O {[%clk 0:03:02]}  b5 {[%clk 0:02:59]} 6. Bb3 {[%clk 0:03:02]}  Bc5 {[%clk 0:03:00]} 7. c3 {[%clk 0:03:02]}  d6 {[%clk 0:03:00]} 8. d4 {[%clk 0:03:02]}  Bb6 {[%clk 0:03:01]} 9. a4 {[%clk 0:03:00]}  Bb7 {[%clk 0:03:01]} 10. Re1 {[%clk 0:02:59]}  h6 {[%clk 0:03:01]} 11. h3 {[%clk 0:02:54]}  O-O {[%clk 0:03:00]} 12. Na3 {[%clk 0:02:45]}  Re8 {[%clk 0:02:58]} 13. d5 {[%clk 0:02:44]}  Ne7 {[%clk 0:02:56]} 14. Bd2 {[%clk 0:02:41]}  c6 {[%clk 0:02:56]} 15. axb5 {[%clk 0:02:36]}  axb5 {[%clk 0:02:43]} 16. dxc6 {[%clk 0:02:30]}  Bxc6 {[%clk 0:02:44]} 17. Qc2 {[%clk 0:02:28]}  Qc7 {[%clk 0:02:27]} 18. Qd3 {[%clk 0:02:26]}  Qb7 {[%clk 0:02:18]} 19. Qxd6 {[%clk 0:02:06]}  Nxe4 {[%clk 0:01:42]} 20. Rxe4 {[%clk 0:01:58]}  Bxe4 {[%clk 0:01:41]} 21. Nxe5 {[%clk 0:01:53]}  Nf5 {[%clk 0:01:10]} 22. Bxf7+ {[%clk 0:01:36]}  Kh8 {[%clk 0:00:42]} 23. Ng6+ {[%clk 0:00:36]}  Kh7 {[%clk 0:00:43]} 24. Qf4 {[%clk 0:00:36]}  Qxf7 {[%clk 0:00:40]} 25. Ne5 {[%clk 0:00:36]}  Qe6 {[%clk 0:00:36]} 26. Ng4 {[%clk 0:00:33]}  Bb7 {[%clk 0:00:28]} 27. Re1 {[%clk 0:00:29]}  Qg6 {[%clk 0:00:27]} 28. g3 {[%clk 0:00:15]}  Rxe1+ {[%clk 0:00:21]} 29. Bxe1 {[%clk 0:00:16]}  Rf8 {[%clk 0:00:20]} 30. Qb4 {[%clk 0:00:13]}  Qc6 {[%clk 0:00:20]} 31. Kf1 {[%clk 0:00:12]}  Nxg3+ {[%clk 0:00:20]} 32. Kg1 {[%clk 0:00:12]}  Qg2# {[%clk 0:00:20]} 0-1


[Site "https://www.chess.com"]

[Event "Titled Tuesday Blitz July 11 Late 2023"]
[White "Srinath, Rao S.V."]
[Black "Dardha, Daniel"]
[WhiteFideId "5028876"]
[BlackFideId "240990"]
[WhiteElo "2577"]
[BlackElo "2872"]
[Result "0-1"]
[Round "7"]
[TimeControl "180+2"]
[Date "2023.07.11"]
[WhiteClock "0:00:08"]
[BlackClock "0:00:32"]
[Board "22"]

1. e4 {[%clk 0:03:00]}  a6 {[%clk 0:02:59]} 2. d4 {[%clk 0:03:00]}  c6 {[%clk 0:02:58]} 3. Bd3 {[%clk 0:02:56]}  d5 {[%clk 0:02:56]} 4. e5 {[%clk 0:02:53]}  g6 {[%clk 0:02:55]} 5. h4 {[%clk 0:02:52]}  c5 {[%clk 0:02:55]} 6. c3 {[%clk 0:02:51]}  Nc6 {[%clk 0:02:54]} 7. Ne2 {[%clk 0:02:50]}  f6 {[%clk 0:02:50]} 8. h5 {[%clk 0:02:43]}  g5 {[%clk 0:02:32]} 9. Qc2 {[%clk 0:02:05]}  fxe5 {[%clk 0:02:23]} 10. Bxh7 {[%clk 0:02:00]}  Nf6 {[%clk 0:02:23]} 11. Bg6+ {[%clk 0:01:58]}  Kd7 {[%clk 0:02:24]} 12. dxe5 {[%clk 0:01:54]}  Nxe5 {[%clk 0:02:21]} 13. Bxg5 {[%clk 0:01:54]}  Nxg6 {[%clk 0:02:13]} 14. Qxg6 {[%clk 0:01:54]}  Rg8 {[%clk 0:02:12]} 15. Qf5+ {[%clk 0:01:39]}  Kc6 {[%clk 0:02:12]} 16. Qf4 {[%clk 0:01:34]}  Ne4 {[%clk 0:02:10]} 17. Bh4 {[%clk 0:01:22]}  Rxg2 {[%clk 0:01:59]} 18. f3 {[%clk 0:01:07]}  Bh6 {[%clk 0:01:56]} 19. Qxh6+ {[%clk 0:01:06]}  Nd6 {[%clk 0:01:50]} 20. Nd2 {[%clk 0:00:58]}  Bf5 {[%clk 0:01:47]} 21. Qe3 {[%clk 0:00:45]}  Qb6 {[%clk 0:01:36]} 22. b4 {[%clk 0:00:41]}  d4 {[%clk 0:01:33]} 23. cxd4 {[%clk 0:00:39]}  Qxb4 {[%clk 0:01:26]} 24. dxc5 {[%clk 0:00:36]}  Nc4 {[%clk 0:01:17]} 25. Qh6+ {[%clk 0:00:26]}  e6 {[%clk 0:01:05]} 26. a3 {[%clk 0:00:23]}  Qb2 {[%clk 0:01:02]} 27. Rd1 {[%clk 0:00:19]}  Qe5 {[%clk 0:01:00]} 28. Ne4 {[%clk 0:00:13]}  Bxe4 {[%clk 0:01:00]} 29. fxe4 {[%clk 0:00:11]}  Qxe4 {[%clk 0:01:00]} 30. Rd2 {[%clk 0:00:10]}  Nxd2 {[%clk 0:00:52]} 31. Qxd2 {[%clk 0:00:09]}  Rxe2+ {[%clk 0:00:31]} 32. Qxe2 {[%clk 0:00:08]}  Qxh1+ {[%clk 0:00:32]} 0-1


[Site "https://www.chess.com"]

[Event "Titled Tuesday Blitz July 11 Late 2023"]
[White "Tristan, Leonardo"]
[Black "Fiorito, Francisco"]
[WhiteFideId "113816"]
[BlackFideId "180165"]
[WhiteElo "2789"]
[BlackElo "2587"]
[Result "1/2-1/2"]
[Round "7"]
[TimeControl "180+2"]
[Date "2023.07.11"]
[WhiteClock "0:00:10"]
[BlackClock "0:00:04"]
[Board "23"]

1. d4 {[%clk 0:03:00]}  Nf6 {[%clk 0:02:59]} 2. Nf3 {[%clk 0:03:01]}  b6 {[%clk 0:02:56]} 3. Bf4 {[%clk 0:03:01]}  Bb7 {[%clk 0:02:57]} 4. e3 {[%clk 0:03:01]}  g6 {[%clk 0:02:57]} 5. Be2 {[%clk 0:03:01]}  Bg7 {[%clk 0:02:58]} 6. O-O {[%clk 0:03:02]}  O-O {[%clk 0:02:58]} 7. a4 {[%clk 0:03:01]}  a6 {[%clk 0:02:57]} 8. Nbd2 {[%clk 0:03:01]}  d6 {[%clk 0:02:57]} 9. h3 {[%clk 0:03:01]}  Nbd7 {[%clk 0:02:57]} 10. Bh2 {[%clk 0:03:01]}  Qe8 {[%clk 0:02:57]} 11. a5 {[%clk 0:03:02]}  b5 {[%clk 0:02:57]} 12. c4 {[%clk 0:03:02]}  bxc4 {[%clk 0:02:58]} 13. Nxc4 {[%clk 0:03:03]}  Ne4 {[%clk 0:02:52]} 14. Qc2 {[%clk 0:03:03]}  Ndf6 {[%clk 0:02:51]} 15. Rfc1 {[%clk 0:03:03]}  Qd7 {[%clk 0:02:51]} 16. Ne1 {[%clk 0:03:03]}  Ng5 {[%clk 0:02:47]} 17. f3 {[%clk 0:02:58]}  Ne6 {[%clk 0:02:35]} 18. Nd3 {[%clk 0:02:58]}  Rfc8 {[%clk 0:02:34]} 19. b4 {[%clk 0:02:56]}  Bc6 {[%clk 0:02:27]} 20. Rab1 {[%clk 0:02:54]}  Bb5 {[%clk 0:02:27]} 21. Na3 {[%clk 0:02:51]}  Ba4 {[%clk 0:02:17]} 22. Qd2 {[%clk 0:02:50]}  c6 {[%clk 0:02:17]} 23. Nb2 {[%clk 0:02:44]}  Bb5 {[%clk 0:02:17]} 24. Nxb5 {[%clk 0:02:44]}  cxb5 {[%clk 0:02:18]} 25. Kf1 {[%clk 0:02:00]}  h5 {[%clk 0:02:10]} 26. e4 {[%clk 0:01:48]}  h4 {[%clk 0:02:00]} 27. Bg1 {[%clk 0:01:47]}  Nh5 {[%clk 0:02:00]} 28. Be3 {[%clk 0:01:45]}  Ng3+ {[%clk 0:01:56]} 29. Kf2 {[%clk 0:01:45]}  d5 {[%clk 0:01:51]} 30. e5 {[%clk 0:01:15]}  Nf5 {[%clk 0:01:51]} 31. f4 {[%clk 0:01:16]}  Bh6 {[%clk 0:01:43]} 32. Nd3 {[%clk 0:01:15]}  Rc4 {[%clk 0:01:40]} 33. Bg4 {[%clk 0:01:15]}  Nxe3 {[%clk 0:01:30]} 34. Qxe3 {[%clk 0:01:13]}  Qa7 {[%clk 0:01:28]} 35. Bxe6 {[%clk 0:01:07]}  fxe6 {[%clk 0:01:27]} 36. Nc5 {[%clk 0:01:05]}  Bxf4 {[%clk 0:01:21]} 37. Qd3 {[%clk 0:01:05]}  Kh7 {[%clk 0:01:05]} 38. Rxc4 {[%clk 0:01:04]}  bxc4 {[%clk 0:01:01]} 39. Qf3 {[%clk 0:00:55]}  Rf8 {[%clk 0:00:53]} 40. Ke2 {[%clk 0:00:49]}  Rf5 {[%clk 0:00:31]} 41. Qg4 {[%clk 0:00:38]}  Bg3 {[%clk 0:00:26]} 42. Rf1 {[%clk 0:00:38]}  Qb8 {[%clk 0:00:20]} 43. Rxf5 {[%clk 0:00:30]}  exf5 {[%clk 0:00:19]} 44. Qg5 {[%clk 0:00:30]}  Qxb4 {[%clk 0:00:05]} 45. Qxe7+ {[%clk 0:00:31]}  Kh6 {[%clk 0:00:05]} 46. Qf8+ {[%clk 0:00:31]}  Kh7 {[%clk 0:00:05]} 47. Qf7+ {[%clk 0:00:21]}  Kh6 {[%clk 0:00:05]} 48. Qf8+ {[%clk 0:00:09]}  Kh7 {[%clk 0:00:05]} 49. Qe7+ {[%clk 0:00:10]}  Kh6 {[%clk 0:00:04]} 50. Qf8+ {[%clk 0:00:10]} 1/2-1/2


[Site "https://www.chess.com"]

[Event "Titled Tuesday Blitz July 11 Late 2023"]
[White "Swayams, Mishra"]
[Black "Hong, Andrew"]
[WhiteFideId "5028183"]
[BlackFideId "2099438"]
[WhiteElo "2613"]
[BlackElo "3064"]
[Result "0-1"]
[Round "7"]
[TimeControl "180+2"]
[Date "2023.07.11"]
[WhiteClock "0:00:18"]
[BlackClock "0:01:55"]
[Board "24"]

1. d4 {[%clk 0:02:59]}  Nf6 {[%clk 0:02:57]} 2. c4 {[%clk 0:02:59]}  g6 {[%clk 0:02:57]} 3. Nc3 {[%clk 0:02:58]}  Bg7 {[%clk 0:02:56]} 4. e4 {[%clk 0:02:59]}  d6 {[%clk 0:02:57]} 5. Be2 {[%clk 0:02:58]}  O-O {[%clk 0:02:57]} 6. Be3 {[%clk 0:02:55]}  c6 {[%clk 0:02:55]} 7. h4 {[%clk 0:02:53]}  Qa5 {[%clk 0:02:49]} 8. Qd2 {[%clk 0:02:44]}  c5 {[%clk 0:02:48]} 9. d5 {[%clk 0:02:37]}  b5 {[%clk 0:02:48]} 10. cxb5 {[%clk 0:02:36]}  a6 {[%clk 0:02:47]} 11. a4 {[%clk 0:02:25]}  axb5 {[%clk 0:02:39]} 12. Bxb5 {[%clk 0:02:26]}  Ba6 {[%clk 0:02:40]} 13. f3 {[%clk 0:02:11]}  Nbd7 {[%clk 0:02:35]} 14. Nge2 {[%clk 0:02:03]}  Nb6 {[%clk 0:02:27]} 15. Bh6 {[%clk 0:01:35]}  Bxh6 {[%clk 0:02:18]} 16. Qxh6 {[%clk 0:01:36]}  Bxb5 {[%clk 0:02:18]} 17. Nf4 {[%clk 0:01:08]}  Qb4 {[%clk 0:02:08]} 18. h5 {[%clk 0:00:29]}  Qxb2 {[%clk 0:02:07]} 19. hxg6 {[%clk 0:00:28]}  fxg6 {[%clk 0:01:55]} 20. Nxg6 {[%clk 0:00:23]}  Qxc3+ {[%clk 0:01:55]} 21. Kf2 {[%clk 0:00:18]}  Ng4+ {[%clk 0:01:55]} 0-1


[Site "https://www.chess.com"]

[Event "Titled Tuesday Blitz July 11 Late 2023"]
[White "Sviridov, Valery"]
[Black "Ganiev, Roman"]
[WhiteFideId "4120680"]
[BlackFideId "4131452"]
[WhiteElo "2958"]
[BlackElo "2608"]
[Result "1-0"]
[Round "7"]
[TimeControl "180+2"]
[Date "2023.07.11"]
[WhiteClock "0:01:08"]
[BlackClock "0:00:03"]
[Board "26"]

1. d4 {[%clk 0:03:00]}  Nf6 {[%clk 0:02:59]} 2. Nc3 {[%clk 0:02:59]}  d5 {[%clk 0:02:58]} 3. Bf4 {[%clk 0:03:00]}  a6 {[%clk 0:02:58]} 4. e3 {[%clk 0:02:59]}  e6 {[%clk 0:02:54]} 5. Nf3 {[%clk 0:02:58]}  c5 {[%clk 0:02:54]} 6. a3 {[%clk 0:02:54]}  Nc6 {[%clk 0:02:53]} 7. Bd3 {[%clk 0:02:54]}  b5 {[%clk 0:02:48]} 8. O-O {[%clk 0:02:54]}  cxd4 {[%clk 0:02:46]} 9. exd4 {[%clk 0:02:54]}  Be7 {[%clk 0:02:45]} 10. Re1 {[%clk 0:02:51]}  O-O {[%clk 0:02:45]} 11. Ne2 {[%clk 0:02:45]}  Bb7 {[%clk 0:02:35]} 12. c3 {[%clk 0:02:44]}  Rc8 {[%clk 0:02:33]} 13. Ng3 {[%clk 0:02:42]}  Bd6 {[%clk 0:02:33]} 14. Ne5 {[%clk 0:02:42]}  Ne7 {[%clk 0:02:30]} 15. h4 {[%clk 0:02:41]}  Ng6 {[%clk 0:02:28]} 16. Bg5 {[%clk 0:02:40]}  Be7 {[%clk 0:02:09]} 17. h5 {[%clk 0:02:29]}  Nxe5 {[%clk 0:02:07]} 18. dxe5 {[%clk 0:02:30]}  Nd7 {[%clk 0:02:04]} 19. Bxe7 {[%clk 0:02:30]}  Qxe7 {[%clk 0:02:04]} 20. Qg4 {[%clk 0:02:23]}  h6 {[%clk 0:01:59]} 21. Qf4 {[%clk 0:02:17]}  Nc5 {[%clk 0:01:17]} 22. Bc2 {[%clk 0:02:16]}  Rfd8 {[%clk 0:01:14]} 23. Ne2 {[%clk 0:02:16]}  Ne4 {[%clk 0:01:04]} 24. Nd4 {[%clk 0:02:14]}  Qg5 {[%clk 0:00:57]} 25. Qxg5 {[%clk 0:02:12]}  hxg5 {[%clk 0:00:58]} 26. f3 {[%clk 0:02:00]}  Ng3 {[%clk 0:00:49]} 27. a4 {[%clk 0:01:42]}  b4 {[%clk 0:00:40]} 28. h6 {[%clk 0:01:09]}  gxh6 {[%clk 0:00:40]} 29. Kf2 {[%clk 0:01:08]}  Nh5 {[%clk 0:00:35]} 30. Rh1 {[%clk 0:01:08]}  Nf4 {[%clk 0:00:36]} 31. Rxh6 {[%clk 0:01:05]}  bxc3 {[%clk 0:00:24]} 32. Rah1 {[%clk 0:01:06]}  Kf8 {[%clk 0:00:18]} 33. b3 {[%clk 0:01:06]}  Ke7 {[%clk 0:00:13]} 34. g3 {[%clk 0:01:06]}  Ng6 {[%clk 0:00:05]} 35. Bxg6 {[%clk 0:01:05]}  fxg6 {[%clk 0:00:06]} 36. Rh7+ {[%clk 0:01:06]}  Ke8 {[%clk 0:00:03]} 37. Rh8+ {[%clk 0:01:07]}  Kd7 {[%clk 0:00:03]} 38. R1h7# {[%clk 0:01:08]} 1-0


[Site "https://www.chess.com"]

[Event "Titled Tuesday Blitz July 11 Late 2023"]
[White "Makarian, Rudik"]
[Black "Leon Oquendo, Jorge"]
[WhiteFideId "44105681"]
[BlackFideId "3514803"]
[WhiteElo "2944"]
[BlackElo "2598"]
[Result "1-0"]
[Round "7"]
[TimeControl "180+2"]
[Date "2023.07.11"]
[WhiteClock "0:00:50"]
[BlackClock "0:00:25"]
[Board "27"]

1. d4 {[%clk 0:03:00]}  g6 {[%clk 0:02:58]} 2. c4 {[%clk 0:03:01]}  Bg7 {[%clk 0:02:58]} 3. Nc3 {[%clk 0:03:02]}  d6 {[%clk 0:02:58]} 4. Nf3 {[%clk 0:03:01]}  Nd7 {[%clk 0:02:58]} 5. e4 {[%clk 0:03:00]}  e6 {[%clk 0:02:59]} 6. Be2 {[%clk 0:02:59]}  Ne7 {[%clk 0:02:59]} 7. O-O {[%clk 0:02:59]}  b6 {[%clk 0:02:59]} 8. Bf4 {[%clk 0:02:58]}  Bb7 {[%clk 0:02:59]} 9. Qd2 {[%clk 0:02:58]}  h6 {[%clk 0:02:58]} 10. Rfe1 {[%clk 0:02:56]}  g5 {[%clk 0:02:58]} 11. Bg3 {[%clk 0:02:55]}  Ng6 {[%clk 0:02:58]} 12. h3 {[%clk 0:02:53]}  Nf6 {[%clk 0:02:52]} 13. d5 {[%clk 0:02:51]}  e5 {[%clk 0:02:49]} 14. Nh2 {[%clk 0:02:43]}  Nf4 {[%clk 0:02:46]} 15. Ng4 {[%clk 0:02:41]}  Nxg4 {[%clk 0:02:30]} 16. Bxg4 {[%clk 0:02:42]}  h5 {[%clk 0:02:31]} 17. Bf5 {[%clk 0:02:42]}  Bh6 {[%clk 0:02:31]} 18. Qc2 {[%clk 0:02:34]}  g4 {[%clk 0:02:18]} 19. h4 {[%clk 0:02:34]}  Bg7 {[%clk 0:02:09]} 20. b4 {[%clk 0:02:24]}  Bf6 {[%clk 0:02:07]} 21. c5 {[%clk 0:02:25]}  Bxh4 {[%clk 0:01:58]} 22. Bxf4 {[%clk 0:02:04]}  exf4 {[%clk 0:01:57]} 23. e5 {[%clk 0:02:05]}  dxe5 {[%clk 0:01:45]} 24. Rxe5+ {[%clk 0:02:04]}  Kf8 {[%clk 0:01:45]} 25. Rae1 {[%clk 0:02:03]}  Bf6 {[%clk 0:01:41]} 26. Qe4 {[%clk 0:01:18]}  Bxe5 {[%clk 0:01:26]} 27. Qxe5 {[%clk 0:01:19]}  Rh6 {[%clk 0:01:26]} 28. Qxf4 {[%clk 0:01:15]}  Kg7 {[%clk 0:01:26]} 29. Re5 {[%clk 0:01:03]}  bxc5 {[%clk 0:01:24]} 30. bxc5 {[%clk 0:01:03]}  Ba6 {[%clk 0:00:59]} 31. Be4 {[%clk 0:00:49]}  Qf6 {[%clk 0:00:53]} 32. Rg5+ {[%clk 0:00:49]}  Kh8 {[%clk 0:00:50]} 33. Rf5 {[%clk 0:00:50]}  Qg7 {[%clk 0:00:31]} 34. Rxf7 {[%clk 0:00:50]}  Qxc3 {[%clk 0:00:24]} 35. Qxh6+ {[%clk 0:00:49]}  Kg8 {[%clk 0:00:25]} 36. Qh7# {[%clk 0:00:50]} 1-0


[Site "https://www.chess.com"]

[Event "Titled Tuesday Blitz July 11 Late 2023"]
[White "Warmerdam, Max"]
[Black "Zavgorodniy, Sergiy"]
[WhiteFideId "1048104"]
[BlackFideId "14110148"]
[WhiteElo "2800"]
[BlackElo "2596"]
[Result "1-0"]
[Round "7"]
[TimeControl "180+2"]
[Date "2023.07.11"]
[WhiteClock "0:02:19"]
[BlackClock "0:00:48"]
[Board "29"]

1. Nf3 {[%clk 0:03:00]}  d5 {[%clk 0:02:59]} 2. g3 {[%clk 0:03:01]}  Nf6 {[%clk 0:02:59]} 3. Bg2 {[%clk 0:03:02]}  e6 {[%clk 0:02:59]} 4. O-O {[%clk 0:03:02]}  Be7 {[%clk 0:03:00]} 5. d4 {[%clk 0:03:03]}  O-O {[%clk 0:03:00]} 6. Ne5 {[%clk 0:03:04]}  b6 {[%clk 0:02:59]} 7. c4 {[%clk 0:03:04]}  Bb7 {[%clk 0:02:59]} 8. Nc3 {[%clk 0:03:04]}  Nbd7 {[%clk 0:02:59]} 9. Bf4 {[%clk 0:03:03]}  c5 {[%clk 0:02:56]} 10. cxd5 {[%clk 0:02:55]}  Nxd5 {[%clk 0:02:49]} 11. Nxd5 {[%clk 0:02:55]}  exd5 {[%clk 0:02:44]} 12. Nxd7 {[%clk 0:02:52]}  Qxd7 {[%clk 0:02:43]} 13. dxc5 {[%clk 0:02:53]}  bxc5 {[%clk 0:02:42]} 14. Rc1 {[%clk 0:02:52]}  d4 {[%clk 0:02:36]} 15. Bxb7 {[%clk 0:02:49]}  Qxb7 {[%clk 0:02:37]} 16. b3 {[%clk 0:02:49]}  a5 {[%clk 0:02:33]} 17. Rc4 {[%clk 0:02:49]}  Rfc8 {[%clk 0:02:27]} 18. Qd3 {[%clk 0:02:48]}  h5 {[%clk 0:02:17]} 19. h4 {[%clk 0:02:47]}  Ra6 {[%clk 0:02:12]} 20. Ra4 {[%clk 0:02:40]}  Bd8 {[%clk 0:01:37]} 21. Rc1 {[%clk 0:02:36]}  Rg6 {[%clk 0:01:31]} 22. Qf5 {[%clk 0:02:33]}  Bxh4 {[%clk 0:01:28]} 23. Rxd4 {[%clk 0:02:24]}  Re8 {[%clk 0:01:18]} 24. Rd7 {[%clk 0:02:21]}  Rf6 {[%clk 0:00:59]} 25. Qxf6 {[%clk 0:02:19]}  Qxd7 {[%clk 0:00:56]} 26. Qxh4 {[%clk 0:02:19]}  Rxe2 {[%clk 0:00:55]} 27. Qxh5 {[%clk 0:02:19]}  Rxa2 {[%clk 0:00:48]} 28. Qxc5 {[%clk 0:02:19]} 1-0


[Site "https://www.chess.com"]

[Event "Titled Tuesday Blitz July 11 Late 2023"]
[White "Boldoo, Erdenepurev"]
[Black "Bartel, Mateusz"]
[WhiteFideId "4901037"]
[BlackFideId "1112635"]
[WhiteElo "2570"]
[BlackElo "2787"]
[Result "0-1"]
[Round "7"]
[TimeControl "180+2"]
[Date "2023.07.11"]
[WhiteClock "0:00:05"]
[BlackClock "0:00:10"]
[Board "32"]

1. d4 {[%clk 0:03:00]}  Nf6 {[%clk 0:02:57]} 2. c4 {[%clk 0:03:00]}  g6 {[%clk 0:02:54]} 3. g3 {[%clk 0:03:01]}  Bg7 {[%clk 0:02:54]} 4. Bg2 {[%clk 0:03:01]}  O-O {[%clk 0:02:54]} 5. Nc3 {[%clk 0:03:01]}  d6 {[%clk 0:02:50]} 6. Nf3 {[%clk 0:03:01]}  Nc6 {[%clk 0:02:50]} 7. O-O {[%clk 0:03:00]}  Bg4 {[%clk 0:02:50]} 8. d5 {[%clk 0:02:59]}  Bxf3 {[%clk 0:02:46]} 9. exf3 {[%clk 0:03:00]}  Na5 {[%clk 0:02:42]} 10. Qe2 {[%clk 0:02:56]}  Nd7 {[%clk 0:02:40]} 11. Bd2 {[%clk 0:02:52]}  c6 {[%clk 0:02:07]} 12. b4 {[%clk 0:02:23]}  cxd5 {[%clk 0:02:00]} 13. bxa5 {[%clk 0:02:20]}  d4 {[%clk 0:02:00]} 14. Nd5 {[%clk 0:02:04]}  e6 {[%clk 0:01:59]} 15. Nf4 {[%clk 0:02:03]}  Rc8 {[%clk 0:01:56]} 16. Rab1 {[%clk 0:01:54]}  Qc7 {[%clk 0:01:52]} 17. Rfc1 {[%clk 0:01:54]}  Ne5 {[%clk 0:01:48]} 18. Bf1 {[%clk 0:00:49]}  Qc6 {[%clk 0:01:47]} 19. Kg2 {[%clk 0:00:49]}  Rc7 {[%clk 0:01:21]} 20. Nd3 {[%clk 0:00:48]}  Nd7 {[%clk 0:01:01]} 21. Qd1 {[%clk 0:00:41]}  Nc5 {[%clk 0:01:01]} 22. Nxc5 {[%clk 0:00:38]}  dxc5 {[%clk 0:01:00]} 23. Bd3 {[%clk 0:00:39]}  f5 {[%clk 0:01:00]} 24. Qe2 {[%clk 0:00:35]}  e5 {[%clk 0:01:01]} 25. Kg1 {[%clk 0:00:28]}  Re8 {[%clk 0:00:58]} 26. Re1 {[%clk 0:00:28]}  Rce7 {[%clk 0:00:57]} 27. Bg5 {[%clk 0:00:28]}  Re6 {[%clk 0:00:56]} 28. Qb2 {[%clk 0:00:25]}  h6 {[%clk 0:00:54]} 29. Bd2 {[%clk 0:00:16]}  e4 {[%clk 0:00:45]} 30. fxe4 {[%clk 0:00:13]}  fxe4 {[%clk 0:00:46]} 31. Bf1 {[%clk 0:00:14]}  R6e7 {[%clk 0:00:17]} 32. Bg2 {[%clk 0:00:10]}  Rf8 {[%clk 0:00:18]} 33. Bf4 {[%clk 0:00:05]}  g5 {[%clk 0:00:17]} 34. Rxe4 {[%clk 0:00:01]}  Rxe4 {[%clk 0:00:17]} 35. Bxe4 {[%clk 0:00:02]}  Qxe4 {[%clk 0:00:16]} 36. Bd6 {[%clk 0:00:03]}  d3 {[%clk 0:00:08]} 37. Qxb7 {[%clk 0:00:02]}  Qxb7 {[%clk 0:00:09]} 38. Rxb7 {[%clk 0:00:03]}  d2 {[%clk 0:00:09]} 39. Rb1 {[%clk 0:00:02]}  Rd8 {[%clk 0:00:08]} 40. Rd1 {[%clk 0:00:02]}  Rxd6 {[%clk 0:00:08]} 41. Kf1 {[%clk 0:00:03]}  Bc3 {[%clk 0:00:07]} 42. Ke2 {[%clk 0:00:04]}  Bxa5 {[%clk 0:00:07]} 43. f4 {[%clk 0:00:04]}  Re6+ {[%clk 0:00:08]} 44. Kd3 {[%clk 0:00:04]}  Re1 {[%clk 0:00:08]} 45. Kc2 {[%clk 0:00:05]}  Rxd1 {[%clk 0:00:08]} 46. Kxd1 {[%clk 0:00:06]}  gxf4 {[%clk 0:00:09]} 47. gxf4 {[%clk 0:00:05]}  Kf7 {[%clk 0:00:10]} 0-1


[Site "https://www.chess.com"]

[Event "Titled Tuesday Blitz July 11 Late 2023"]
[White "Przybylski, Wojciech"]
[Black "Tanenbaum, Zachary"]
[WhiteFideId "1117599"]
[BlackFideId "2060850"]
[WhiteElo "2570"]
[BlackElo "2756"]
[Result "1-0"]
[Round "7"]
[TimeControl "180+2"]
[Date "2023.07.11"]
[WhiteClock "0:02:02"]
[BlackClock "0:00:52"]
[Board "33"]

1. e4 {[%clk 0:03:00]}  e5 {[%clk 0:03:00]} 2. Nf3 {[%clk 0:03:00]}  Nc6 {[%clk 0:02:59]} 3. d4 {[%clk 0:02:59]}  exd4 {[%clk 0:02:59]} 4. Nxd4 {[%clk 0:03:00]}  Bc5 {[%clk 0:02:59]} 5. Be3 {[%clk 0:02:57]}  Qf6 {[%clk 0:02:58]} 6. c3 {[%clk 0:02:57]}  Nge7 {[%clk 0:02:58]} 7. Bc4 {[%clk 0:02:56]}  Ne5 {[%clk 0:02:55]} 8. Bb3 {[%clk 0:02:57]}  Qg6 {[%clk 0:02:52]} 9. O-O {[%clk 0:02:55]}  d6 {[%clk 0:02:47]} 10. f4 {[%clk 0:02:53]}  Bh3 {[%clk 0:02:44]} 11. Qe2 {[%clk 0:02:51]}  Bg4 {[%clk 0:01:59]} 12. Qd2 {[%clk 0:02:50]}  N5c6 {[%clk 0:01:47]} 13. f5 {[%clk 0:02:50]}  Qf6 {[%clk 0:01:36]} 14. h3 {[%clk 0:02:50]}  Bh5 {[%clk 0:01:33]} 15. g4 {[%clk 0:02:48]}  Qh4 {[%clk 0:01:27]} 16. Qg2 {[%clk 0:02:47]}  Bxg4 {[%clk 0:01:03]} 17. hxg4 {[%clk 0:02:36]}  Ne5 {[%clk 0:01:02]} 18. Bd1 {[%clk 0:02:29]}  h5 {[%clk 0:00:58]} 19. Bf2 {[%clk 0:02:07]}  Qg5 {[%clk 0:00:57]} 20. gxh5 {[%clk 0:02:06]}  Qc1 {[%clk 0:00:52]} 21. Ba4+ {[%clk 0:02:02]} 1-0


[Site "https://www.chess.com"]

[Event "Titled Tuesday Blitz July 11 Late 2023"]
[White "Chen, Max"]
[Black "Rozman, Levy"]
[WhiteFideId "2622440"]
[BlackFideId "2039877"]
[WhiteElo "2570"]
[BlackElo "2756"]
[Result "1-0"]
[Round "7"]
[TimeControl "180+2"]
[Date "2023.07.11"]
[WhiteClock "0:00:14"]
[BlackClock "0:00:00"]
[Board "34"]

1. e4 {[%clk 0:02:59]}  c6 {[%clk 0:02:58]} 2. c4 {[%clk 0:02:56]}  d5 {[%clk 0:02:58]} 3. cxd5 {[%clk 0:02:56]}  cxd5 {[%clk 0:02:59]} 4. exd5 {[%clk 0:02:57]}  Nf6 {[%clk 0:02:58]} 5. Qa4+ {[%clk 0:02:56]}  Nbd7 {[%clk 0:02:58]} 6. Nc3 {[%clk 0:02:56]}  g6 {[%clk 0:02:58]} 7. Bc4 {[%clk 0:02:56]}  Bg7 {[%clk 0:02:58]} 8. d3 {[%clk 0:02:55]}  O-O {[%clk 0:02:59]} 9. Nf3 {[%clk 0:02:52]}  a6 {[%clk 0:02:54]} 10. Qa3 {[%clk 0:02:52]}  Qc7 {[%clk 0:02:50]} 11. O-O {[%clk 0:02:48]}  Rb8 {[%clk 0:02:31]} 12. Qxe7 {[%clk 0:02:38]}  b5 {[%clk 0:02:09]} 13. d6 {[%clk 0:02:22]}  Qa5 {[%clk 0:02:00]} 14. Bb3 {[%clk 0:02:17]}  Bb7 {[%clk 0:01:51]} 15. Ng5 {[%clk 0:02:10]}  Rbe8 {[%clk 0:01:28]} 16. Bxf7+ {[%clk 0:02:08]}  Kh8 {[%clk 0:01:19]} 17. Bxe8 {[%clk 0:02:07]}  Rxe8 {[%clk 0:01:19]} 18. Qf7 {[%clk 0:02:01]}  b4 {[%clk 0:01:17]} 19. Nce4 {[%clk 0:01:33]}  Bd5 {[%clk 0:01:06]} 20. Nxf6 {[%clk 0:01:32]}  Nxf6 {[%clk 0:00:59]} 21. Qc7 {[%clk 0:01:23]}  Qb5 {[%clk 0:00:56]} 22. a4 {[%clk 0:01:17]}  Qxd3 {[%clk 0:00:47]} 23. d7 {[%clk 0:01:11]}  Nxd7 {[%clk 0:00:47]} 24. Be3 {[%clk 0:00:42]}  Qf5 {[%clk 0:00:30]} 25. Qf4 {[%clk 0:00:40]}  Qxf4 {[%clk 0:00:22]} 26. Bxf4 {[%clk 0:00:40]}  Bxb2 {[%clk 0:00:22]} 27. Rad1 {[%clk 0:00:32]}  Nf6 {[%clk 0:00:18]} 28. Rfe1 {[%clk 0:00:30]}  Rxe1+ {[%clk 0:00:15]} 29. Rxe1 {[%clk 0:00:30]}  b3 {[%clk 0:00:13]} 30. Nf3 {[%clk 0:00:20]}  Ne4 {[%clk 0:00:06]} 31. Be5+ {[%clk 0:00:14]}  Bxe5 {[%clk 0:00:06]} 32. Nxe5 {[%clk 0:00:15]}  Nc3 {[%clk 0:00:04]} 33. Nd3 {[%clk 0:00:15]}  Bc4 {[%clk 0:00:02]} 34. Nb2 {[%clk 0:00:15]}  Be2 {[%clk 0:00:02]} 35. f3 {[%clk 0:00:14]}  Kg7 {[%clk 0:00:00]} 36. Kf2 {[%clk 0:00:14]} 1-0


[Site "https://www.chess.com"]